{"text_format":"3","workbook":"xlsx","n_sheets":2,"sheets":["RFP CHS","RFP NHS"],"read":"whole","date_system":"1900"}

{"sheet":"RFP CHS","index":0,"n_rows":104,"n_cols":7,"rows_kept":104,"merged":[[0,0,0,6],[1,0,1,6],[2,0,2,6],[3,0,3,6],[4,0,4,6],[5,0,6,0],[5,3,5,6],[99,3,103,4]]}
["RFP# 30343 Portage Northern High School & Portage Central High School Weight Room Flooring, Painting, and Equiment"]
["Portage Central High School"]
["8135 S. Westnedge Ave Portage, MI 49002"]
["Responses Due: 2/28/2023 @ 3:00 PM"]
["Bid Proposal Form"]
["Category",null,null,"Portage Central High School"]
[null,"Item","Item Description","Qty","Unit Price","Total Price","If alternate item, provide the item Bid below:"]
["A","Flooring"]
[null,"Rubber Flooring with Logo Inlays at Stations","1/2\" Regupol AktivPlus Flooring or equivalent (approximate square footage)",{"v":4852,"d":"4,852.00"}]
[null,"Square Footage, Rubber Transitions, Wall Base","5' x 8' Inlaid Platforms with one school logo and Gray Centers",{"v":20,"d":"20.00"}]
[null,null,"4\" Rubber Base in Black for the base of the walls",{"v":1,"d":"1.00"}]
[null,null,"Rubber Transitions for the Entry Ways (Doorways)",{"v":3,"d":"3.00"}]
[null,null,"Prep existing rubber flooring to overlay"]
[null,null,"Color: Blue (to match school colors blue and yellow)"]
[null,null,"(Vendor welcome to submit sample layout, final layout to be approved by PPS.)",null,null,{"$f":"SUM(F9:F14)","v":0},"Category A Lump Sum"]
["B","Painting"]
[null,"Painting of Weight Room Walls","N/A for Portage Central High School","N/A"]
[]
[{"$nulls":5},{"$f":"SUM(F17:F18)","v":0},"Category B Lump Sum"]
["C","Racks and Benches"]
[null,"Double/Combo/Full Rack","Double Rack Station",{"v":7,"d":"7.00"}]
[null,null,"Dimensions - 3\" x 5\" Uprights"]
[null,null,"Dimensions - 2'\" x 4\" Steel Cross Braces"]
[null,null,"Full Cage Safety Bars"]
[null,null,"Minimum 7 Gage Steel Uprights"]
[null,null,"Color Scheme - Navy Blue and Yellow"]
[null,null,"Brand: Pendulum or Equivalent"]
[]
[null,"Single/Half Rack","Single Rack Stations",{"v":6,"d":"6.00"}]
[null,null,"Dimensions - 3\" x 5\" Uprights"]
[null,null,"Dimensions - 2'\" x 4\" Steel Cross Braces"]
[null,null,"Full Cage Safety Bars"]
[null,null,"Minimum 7 Gage Steel Uprights"]
[null,null,"Color Scheme - Blue and Yellow "]
[null,null,"Brand: Pendulum or Equivalent"]
[]
[null,"Rack Add-Ons","Pull Up Attachment - 1 system per station",{"v":20,"d":"20.00"}]
[null,null,"Front Band Attachment - 1 system per station",{"v":20,"d":"20.00"}]
[null,null,"Glute Ham Attachment - 1 system per station",{"v":20,"d":"20.00"}]
[null,null,"Jammer Attachment - 1 system per station",{"v":20,"d":"20.00"}]
[null,null,"Landmine Attachment - 1 system per station",{"v":20,"d":"20.00"}]
[null,null,"Bumper Plate Storage Attachment - 1  System per station",{"v":20,"d":"20.00"}]
[]
[null,"Connecting Braces","Connection Brace Between Stations in a Row",{"v":15,"d":"15.00"}]
[null,null,"Must Include at a minimum pullup attachments and band attachments"]
[null,null,"Color: Coordinate with rack stations (Navy Blue and Yellow)"]
[]
[null,"Rack Benches","Docking Bench that folds to store in rack",{"v":20,"d":"20.00"}]
[null,null,"Adjustable from flat to upright. Wheels attached for easy movement"]
[null,null,"Color: Coordinate with rack stations (Navy Blue and Yellow)"]
[]
[null,"Dumbbell Benches","Flat to Incline Bench",{"v":5,"d":"5.00"}]
[null,null,"Color: Coordinate with rack stations (Navy Blue and Yellow)"]
[]
[null,"Bars","45 lb Needle Bearing Olympic Bar",{"v":20,"d":"20.00"}]
[null,null,"15 lb Training Bar",{"v":6,"d":"6.00"}]
[null,null,"45 lb Muliti/Hex Bar",{"v":6,"d":"6.00"}]
[{"$nulls":5},{"$f":"SUM(F21:F57)","v":0},"Category C Lump Sum"]
["D & D1","Weight Plates"]
[null,"Rubber Encased Olympic Plates","5lb Plates",{"v":40,"d":"40.00"}]
[null,null,"2.5 Plates",{"v":40,"d":"40.00"}]
[null,null,"Color: Black"]
[]
["D)","Bumper Plates","45 lb - 52 Millimeters Thickness",{"v":120,"d":"120.00"}]
[null,"Black ","35 lb - 47 Milimeters Thickness",{"v":40,"d":"40.00"}]
[null,null,"25 lb - 37 Milimeters Thickness",{"v":40,"d":"40.00"}]
[null,null,"10 lb - 24 Milimeters Thickness",{"v":40,"d":"40.00"}]
[null,null,"Color: Black",null,null,{"$f":"SUM(F60:F67)","v":0},"Category D Lump Sum"]
[null,null,"Brand: Troy or equivalent"]
[null,"Madatory Alternate"]
["D1)","Bumper Plates - With Laser Engraved Logos","45 lb - 52 Millimeters Thickness",{"v":120,"d":"120.00"}]
[null,null,"35 lb - 47 Milimeters Thickness",{"v":40,"d":"40.00"}]
[null,null,"25 lb - 37 Milimeters Thickness",{"v":40,"d":"40.00"}]
[null,null,"10 lb - 24 Milimeters Thickness",{"v":40,"d":"40.00"}]
[null,null,"Color: Black with laser engraved logos"]
[null,null,"Brand: Troy or equivalent"]
[{"$nulls":5},{"$f":"SUM(F71:F74)","v":0},"Category D1 - ALTERNATE - Lump Sum"]
["E","Dumbbells"]
[null,"Dumbbells","Sets of Troy Rubber Hex dumbbells 15-100 in 5 lb increments",{"v":3,"d":"3.00"}]
[]
[null,"Dumbbells - With Inlaid Logos","Sets of Troy Urethane encased dumbbells 15-100 - 5 lb increments",{"v":3,"d":"3.00"}]
[]
[null,"Three Tier Dumbbell Racks","Enough to fit the dumbbells Bid",{"v":1,"d":"1.00"}]
[{"$nulls":5},{"$f":"SUM(F79:F83)","v":0},"Category E Lump Sum"]
["F","Pulldown Machines"]
[null,"Seated High/Low Lat Pull Machine - Stand Alone","Pully System Machine with a combo option for Rows",{"v":4,"d":"4.00"}]
[]
[null,"Seated High/Low Lat Pull Machine - Wall Mounted","Pully System Machine with a combo option for Rows mounted to wall",{"v":4,"d":"4.00"}]
[{"$nulls":5},{"$f":"SUM(F86:F88)","v":0},"Category F Lump Sum"]
["G","Other Equipment"]
[null,"Bands","Light, Medium, Heavy",{"v":60,"d":"60.00"}]
[]
[null,"Chalk Stand","Freestanding Chalk Stand",{"v":4,"d":"4.00"}]
[]
[null,"Collars","Lockjaw",{"v":20,"d":"20.00"}]
[]
[null,"Plyo Box Set","Set of - 12-18-24-30 In",{"v":1,"d":"1.00"}]
[{"$nulls":5},{"$f":"SUM(F91:F97)","v":0},"Category G Lump Sum"]
[null,"Cost Summary"]
[null,"Subtotal","Subtotal",null,null,{"$f":"F98+F89+F84+F58+F15+F68+F19","v":0}]
[null,"Shipping Costs ","Shipping Costs"]
[null,"Liftgate Delivery & Installation (Required)","Install/ Liftgate Delivery Costs"]
[null,"Grand Total","Grand Total",null,null,{"$f":"SUM(F100+F101+F102)","v":0}]
[null,"Estimated Lead Time (ARO)","Estimated Lead Time (ARO)"]

{"sheet":"RFP NHS","index":1,"n_rows":103,"n_cols":7,"rows_kept":103,"merged":[[0,0,0,6],[1,0,1,6],[2,0,2,6],[3,0,3,6],[4,0,4,6],[5,0,6,0],[5,3,5,6],[98,3,102,4]]}
["RFP# 30343 Portage Northern High School & Portage Central High School Weight Room Flooring, Painting & Equipment"]
["Portage Northern High School"]
["1000 Idaho Ave Portage, MI 49024"]
["Responses Due: 2/28/2023 @ 3:00 PM"]
["Bid Proposal Form"]
["Category",null,null,"Northern High School"]
[null,"Item","Item Description","Qty","Unit Price","Total Price","If alternate item, provide the item Bid below:"]
["A","Flooring"]
[null,"Rubber Flooring with Logo Inlays at Stations","1/2\" Regupol AktivPlus Flooring or Equivalent (approximately 3700 sq ft)",{"v":1,"d":"1.00"}]
[null,null,"5' x 8' Inlaid Platforms with school logo and gray centers",{"v":20,"d":"20.00"}]
[null,null,"4\" Rubber Base in Black for the base of the walls",{"v":1,"d":"1.00"}]
[null,null,"Rubber Transitions for the Entry Ways (Doorways)",{"v":2,"d":"2.00"}]
[null,null,"Prep existing rubber flooring to overlay"]
[null,null,"Color: Orange (to match school colors)"]
[null,null,"(Vendor welcome to submit sample layout, final layout to be approved by PPS.)",null,null,{"$f":"SUM(F9:F14)","v":0},"Category A Lump Sum"]
["B","Painting"]
[null,"Painting of Weight Room Walls","Wash & Prep Walls",{"v":1,"d":"1.00"}]
[null,null,"Prime",{"v":1,"d":"1.00"}]
[null,null,"Paint Walls (satin finish) (1 coat) SW6385 Dover White",{"v":1,"d":"1.00"}]
[null,null,"Paint Walls (stripes around room 1 brown, 1 orange to match current colors)",{"v":1,"d":"1.00"}]
[null,null,"*Please include all labor & material costs for one (1) coat of paint "]
[]
[{"$nulls":5},{"$f":"SUM(F17:F22)","v":0},"Category B Lump Sum"]
["C","Racks and Benches"]
[null,"Double/Combo/Full Rack","Double Rack Station",{"v":10,"d":"10.00"}]
[null,null,"Dimensions - 3\" x 5\" Uprights"]
[null,null,"Dimensions - 2\" x 4\" Steel Cross Braces"]
[null,null,"Full Cage Safety Bars"]
[null,null,"Minimum 7 Gage Steel Uprights"]
[null,null,"Color Scheme - Brown and Orange"]
[null,null,"Brand: Pendulum or equivalent"]
[]
[null,"Rack Add-Ons","Pull Up Attachment - 1 system per station",{"v":20,"d":"20.00"}]
[null,null,"Front Band Attachment - 1 system per station",{"v":20,"d":"20.00"}]
[null,null,"Glute Ham Attachment - 1 system per station",{"v":20,"d":"20.00"}]
[null,null,"Jammer Attachment - 1 system per station",{"v":20,"d":"20.00"}]
[null,null,"Landmine Attachment - 1 system per station",{"v":20,"d":"20.00"}]
[null,null,"Bumper Plate Storage Attachment - 1  System per station",{"v":20,"d":"20.00"}]
[null,null,"Brand: Pendulum or equivalent"]
[]
[null,"Connecting Braces","Connection Brace Between Stations in a Row",{"v":10,"d":"10.00"}]
[null,null,"Must include at minimum pullup attachments and band attachments"]
[null,null,"Color: Coordinate with rack stations (Orange and Brown)"]
[]
[null,"Rack Benches","Docking Bench that folds to store in rack",{"v":20,"d":"20.00"}]
[null,null,"Adjustable from flat to upright. Wheels attached for easy movement"]
[null,null,"Color: Coordinate with rack stations (Orange and Brown)"]
[]
[null,"Dumbbell Benches","Flat to Incline Bench",{"v":5,"d":"5.00"}]
[null,null,"Color: Coordinate with rack stations (Orange and Brown)"]
[]
[null,"Bars","45 lb Needle Bearing Olympic Bar",{"v":20,"d":"20.00"}]
[null,null,"15 lb Training Bar",{"v":6,"d":"6.00"}]
[null,null,"45 lb Muliti/Hex Bar",{"v":6,"d":"6.00"}]
[]
[{"$nulls":5},{"$f":"SUM(F25:F55)","v":0},"Category B Lump Sum"]
["D & D1","Weight Plates"]
[null,"Rubber Encased Olympic Plates","5lb Plates",{"v":40,"d":"40.00"}]
[null,null,"2.5 Plates",{"v":40,"d":"40.00"}]
[null,null,"Color: Black"]
[]
[null,"Bumper Plates - Alternate"]
["D","Bumper Plates - regular","45 lb - 52 Millimeters Thickness",{"v":120,"d":"120.00"}]
[null,null,"35 lb - 47 Milimeters Thickness",{"v":40,"d":"40.00"}]
[null,null,"25 lb - 37 Milimeters Thickness",{"v":40,"d":"40.00"}]
[null,null,"10 lb - 24 Milimeters Thickness",{"v":40,"d":"40.00"}]
[null,null,"Color: Black"]
[null,null,"Brand: Troy or Equivalent",null,null,{"$f":"SUM(F58:F66)","v":0},"Category D Lump Sum"]
[null,"Mandatory Alternate"]
["D1)","Bumper Plates - with laser engraved logos","45 lb - 52 Millimeters Thickness",{"v":120,"d":"120.00"}]
[null,null,"35 lb - 47 Milimeters Thickness",{"v":40,"d":"40.00"}]
[null,null,"25 lb - 37 Milimeters Thickness",{"v":40,"d":"40.00"}]
[null,null,"10 lb - 24 Milimeters Thickness",{"v":40,"d":"40.00"}]
[null,null,"Color: Black with laster engraved logos"]
[null,null,"Brand: Troy or equivalent"]
[{"$nulls":5},{"$f":"SUM(F70:F75)","v":0},"Category D1 - ALTERNATE - Lump Sum"]
["E","Dumbbells"]
[null,"Dumbbells","Sets of Troy Rubber Hex dumbbells 15-100 in 5 lb increments",{"v":3,"d":"3.00"}]
[]
[null,"Dumbbells - With Inlaid Logos","Sets of Troy Urethane encased dumbbells 15-100 - 5 lb increments",{"v":3,"d":"3.00"}]
[]
[null,"Three Tier Dumbbell Racks","Enough to fit the dumbbells Bid",{"v":1,"d":"1.00"}]
[{"$nulls":5},{"$f":"SUM(F78:F82)","v":0},"Category E Lump Sum"]
["F","Other Equipment"]
[null,"Seated High/Low Lat Pull Machine - Stand Alone","Pully System Machine with a combo option for Rows",{"v":4,"d":"4.00"}]
[]
[null,"Seated High/Low Lat Pull Machine - Wall Mounted","Pully System Machine with a combo option for Rows mounted to wall",{"v":4,"d":"4.00"}]
[{"$nulls":5},{"$f":"SUM(F85:F87)","v":0},"Category F Lump Sum"]
["G","Other Equipment"]
[null,"Bands","Light, Medium, Heavy",{"v":60,"d":"60.00"}]
[]
[null,"Chalk Stand","Freestanding Chalk Stand",{"v":4,"d":"4.00"}]
[]
[null,"Collars","Lockjaw",{"v":20,"d":"20.00"}]
[]
[null,"Plyo Box Set","Set of - 12-18-24-30 In",{"v":1,"d":"1.00"}]
[{"$nulls":5},{"$f":"SUM(F90:F96)","v":0},"Category G Lump Sum"]
[null,"Cost Summary"]
[null,"Subtotal","Subtotal",null,null,{"$f":"F97+F88+F83+F68+F56+F15","v":0}]
[null,"Shipping Costs","Shipping Costs"]
[null,"Liftgate Delivery & Installation (Required)","Install/ Liftgate Delivery Costs"]
[null,"Grand Total","Grand Total",null,null,{"$f":"SUM(F99+F100+F101)","v":0}]
[null,"Estimated Lead Time (ARO)","Estimated Lead Time (ARO)"]